bitfinex-derivatives/quotes_ETHF0:USTF0_20250104
["timestamp","ask_amount","ask_price","bid_price","bid_amount"]
[1735983210398,0.2784,3593.1,3593.0,4.35573534]
[1735983210708,1.30058428,3593.1,3593.0,4.35573534]
[1735983212111,1.30058428,3593.1,3592.8,1.30060428]
[1735983212307,0.8528,3593.0,3592.8,1.30060428]
[1735983212809,0.4431,3592.9,3592.8,1.30060428]
[1735983233412,0.8528,3593.0,3592.8,1.02218428]
[1735983233618,3.27806489,3593.7,3592.9,3.2078]
[1735983233823,3.27806489,3593.7,3593.6,1.30054428]
[1735983234716,1.3125,3593.8,3593.7,0.27836]
[1735983241526,3.27806489,3594.2,3593.7,0.27836]
[1735983241832,1.2961,3594.1,3594.0,0.27833]
[1735983242725,1.2961,3594.1,3594.0,1.30051428]
[1735983244625,1.2961,3594.1,3593.7,1.09]
[1735983244819,1.30051428,3594.0,3593.8,0.27835]
[1735983245021,1.30051428,3594.0,3593.7,0.27835]
[1735983245435,0.27834,3593.9,3593.6,4.63409534]
[1735983245627,0.27834,3593.9,3593.6,5.65627962]
[1735983245930,41.07834,3593.9,3593.6,5.65627962]
[1735983246132,41.07834,3593.9,3593.6,1.30054428]
[1735983246133,0.27834,3593.9,3593.6,1.30054428]
[1735983246633,41.82218428,3594.0,3593.6,1.02218428]
[1735983246933,42.10052428,3594.0,3593.7,0.27835]
[1735983247121,1.30052428,3594.0,3593.7,0.27835]
[1735983247327,1.30052428,3594.0,3593.7,1.30053428]
[1735983248633,1.02218428,3594.0,3593.8,0.27835]
[1735983249337,1.02218428,3594.0,3593.5,4.2978]
[1735983249338,3.48007913,3594.1,3593.9,1.02218428]
[1735983249534,3.48007913,3594.1,3593.9,1.30052428]
[1735983251136,3.48007913,3594.1,3594.0,0.27833]
[1735983251331,1.2961,3594.1,3594.0,0.27833]
[1735983258851,1.57443,3594.1,3593.8,0.27834]
[1735983259050,1.57443,3594.1,3593.9,0.27834]
[1735983259547,1.2961,3594.1,3594.0,0.27833]
[1735983260137,1.2961,3594.1,3593.9,0.27834]
[1735983260339,1.2961,3594.1,3594.0,0.27833]
[1735983262241,1.57443,3594.1,3593.9,1.30052428]
[1735983262441,1.57443,3594.1,3593.8,0.27834]
[1735983262642,1.57443,3594.1,3593.9,0.27834]
[1735983263245,1.2961,3594.1,3593.9,0.27834]
[1735983263641,1.2961,3594.1,3594.0,0.27833]
[1735983264848,1.57443,3594.1,3593.7,1.02218428]
[1735983265046,1.57443,3594.1,3593.8,0.27835]
[1735983266046,3.75840913,3594.1,3593.8,0.27835]
[1735983266448,3.75840913,3594.1,3593.9,0.27834]
[1735983269444,1.02218428,3594.0,3593.5,3.2078]
[1735983269750,3.48007913,3594.1,3593.5,4.22998428]
[1735983269952,1.30052428,3594.0,3593.8,0.27835]
[1735983270743,1.30052428,3594.0,3593.8,0.27834]
[1735983270949,1.30052428,3594.0,3593.5,4.22998428]
[1735983271147,1.30052428,3594.0,3593.9,0.27834]
[1735983272855,4.57858917,3594.0,3593.9,0.27834]
[1735983276757,1.30052428,3594.0,3593.9,0.27834]
[1735983277057,1.02218428,3594.0,3593.5,1.02218428]
[1735983277257,0.27835,3593.9,3593.8,0.27834]
[1735983277854,0.27836,3593.7,3593.6,0.27836]
[1735983278055,1.30054428,3593.7,3593.6,0.27836]
[1735983278553,1.73374428,3593.7,3593.6,0.27836]
[1735983279360,6.10306334,3593.7,3593.6,0.27836]
[1735983285958,0.27836,3593.6,3593.5,1.30055428]
[1735983286158,1.14936,3593.6,3593.5,1.30055428]
[1735983286550,0.871,3593.6,3593.5,1.30055428]
[1735983286861,1.14936,3593.6,3593.5,1.30055428]
[1735983288261,4.43097016,3593.6,3593.5,1.30055428]
[1735983289158,1.14936,3593.6,3593.5,1.30055428]
[1735983292251,4.43099476,3593.6,3593.5,1.30055428]
[1735983294158,0.27837,3593.5,3593.4,0.27837]
[1735983294552,0.27837,3593.5,3593.4,1.30055428]
[1735983297264,4.43100476,3593.6,3593.5,0.27837]
[1735983300257,0.27837,3593.5,3593.4,1.30056428]
[1735983301963,3.56008675,3593.5,3593.4,1.30056428]
[1735983302364,3.56008675,3593.5,3593.4,1.02218428]
[1735983302663,3.56008675,3593.5,3593.4,1.30056428]
[1735983303569,3.28171675,3593.5,3593.4,1.02218428]
[1735983304067,3.28171675,3593.5,3593.1,4.35573534]
[1735983304068,0.27838,3593.4,3593.3,0.27838]
[1735983305259,3.28171675,3593.5,3593.2,4.35573534]
[1735983305464,0.27839,3593.3,3593.2,4.35573534]
[1735983305666,1.30057428,3593.3,3593.2,4.35573534]
[1735983305873,45.30837428,3593.3,3593.2,4.35573534]
[1735983306667,4.50837428,3593.3,3593.2,4.35573534]
[1735983307177,45.30837428,3593.3,3593.2,4.35573534]
[1735983307769,0.27843,3592.9,3592.7,1.30061428]
[1735983308071,1.52703,3592.8,3592.7,1.30061428]
[1735983308474,1.52703,3592.8,3592.7,1.02218428]
[1735983308668,1.52703,3592.8,3592.7,1.30061428]
[1735983309977,1.52703,3592.8,3592.7,1.02218428]
[1735983311071,0.27845,3592.6,3592.5,0.27845]
[1735983311876,0.27845,3592.5,3592.4,5.65636962]
[1735983312174,0.27845,3592.5,3592.4,1.30063428]
[1735983313473,3.20929698,3592.7,3592.4,1.02218428]
[1735983313672,0.27845,3592.6,3592.5,0.27845]
[1735983314374,2.4655627,3592.6,3592.5,0.27845]
[1735983316376,2.4655527,3592.6,3592.5,0.27845]
[1735983316678,0.27844,3592.6,3592.5,0.27845]
[1735983322584,2.4655527,3592.7,3592.6,0.27844]
[1735983322985,2.1871127,3592.7,3592.5,0.27845]
[1735983323187,0.27844,3592.6,3592.5,0.27845]
[1735983324479,0.27845,3592.5,3592.4,1.30064428]
[1735983326396,3.20929698,3592.7,3592.4,1.02218428]
[1735983326697,0.27845,3592.6,3592.5,0.27845]
[1735983326887,0.27845,3592.5,3592.4,1.30063428]
[1735983330098,3.20929698,3592.7,3592.4,1.02218428]
[1735983330395,0.27845,3592.6,3592.5,0.27845]
[1735983331195,2.4655527,3592.7,3592.6,0.27844]
[1735983331396,2.1871127,3592.7,3592.6,1.30062428]
[1735983331591,2.4655427,3592.7,3592.6,1.30062428]
[1735983332298,0.27843,3592.7,3592.6,1.02218428]
[1735983332696,0.27843,3592.7,3592.6,1.30062428]
[1735983335602,0.27843,3592.7,3592.6,0.27844]
[1735983339302,2.1871127,3592.7,3592.5,1.02218428]
[1735983339503,0.27844,3592.6,3592.5,1.30062428]
[1735983341603,2.4655527,3592.7,3592.6,0.27844]
[1735983344604,2.1871127,3592.7,3592.6,0.27844]
[1735983346003,2.4655427,3592.7,3592.6,0.27844]
[1735983346600,2.1871127,3592.7,3592.6,0.27844]
[1735983346896,4.80928217,3592.8,3592.6,0.27844]
[1735983347102,4.53085217,3592.8,3592.7,1.02218428]
[1735983347306,4.53085217,3592.8,3592.7,1.30061428]
[1735983348901,3.43707859,3592.8,3592.7,1.30061428]
[1735983350004,1.2486,3592.8,3592.7,1.30061428]
[1735983350505,0.27843,3592.7,3592.6,0.27844]
[1735983350898,1.2486,3592.8,3592.6,0.27844]
[1735983350899,1.52703,3592.8,3592.6,0.27844]
[1735983352001,3.28225217,3592.7,3592.6,4.64845837]
[1735983353408,5.90336623,3592.8,3592.6,4.98655587]
[1735983354302,5.62493623,3592.8,3592.6,4.70811587]
[1735983354607,5.62493623,3592.8,3592.7,0.27843]
[1735983354909,5.62493623,3592.8,3592.7,4.65061275]
[1735983358701,5.62493623,3592.8,3592.7,5.67279703]
[1735983360208,4.53513809,3592.8,3592.7,6.00788014]
[1735983361610,3.28653809,3592.8,3592.7,6.00788014]
[1735983361907,3.28653809,3592.8,3592.7,4.98569586]
[1735983363207,2.19080457,3592.8,3592.7,4.98569586]
[1735983364104,2.19080457,3592.9,3592.7,4.70726586]
[1735983364305,2.19080457,3592.9,3592.8,1.30061428]
[1735983365210,2.19080457,3592.9,3592.8,12.56127942]
[1735983365410,2.19080457,3592.9,3592.8,11.26066514]
[1735983365710,2.46922457,3592.9,3592.8,11.26066514]
[1735983366115,2.19080457,3592.9,3592.8,11.53909514]
[1735983366715,5.52074623,3593.0,3592.8,0.27843]
[1735983366913,5.52074623,3593.0,3592.9,1.02218428]
[1735983367312,5.24233623,3593.0,3592.9,1.30060428]
[1735983367513,0.866,3593.0,3592.9,1.30060428]
[1735983368512,1.14441,3593.0,3592.9,1.30060428]
[1735983370918,1.14441,3593.0,3592.9,0.27842]
[1735983377322,5.52074623,3593.0,3592.9,0.27842]
[1735983380629,0.27843,3592.9,3592.8,0.27842]
[1735983382532,5.24233623,3593.0,3592.7,5.39161878]
[1735983382831,0.27842,3592.9,3592.8,0.27842]
[1735983383728,5.52075623,3593.0,3592.9,0.27842]
[1735983383917,5.24233623,3593.0,3592.9,1.30060428]
[1735983385634,4.1517669,3593.0,3592.9,6.00590584]
[1735983390336,0.866,3593.0,3592.9,12.55930512]
[1735983391738,0.866,3593.0,3592.9,6.00590584]
[1735983392835,4.4301769,3593.0,3592.9,4.64857257]
[1735983393040,4.4301769,3593.0,3592.9,5.67075685]
[1735983393840,4.4301769,3593.0,3592.9,1.30060428]
[1735983395133,1.14441,3593.0,3592.9,1.02218428]
[1735983395642,1.14441,3593.0,3592.9,1.30060428]
[1735983396641,1.14441,3593.0,3592.9,5.67281318]
[1735983396844,0.866,3593.0,3592.9,5.67281318]
[1735983397941,4.15159387,3593.0,3592.9,5.67281318]
[1735983399445,4.15159387,3593.0,3592.9,6.00791442]
[1735983400646,4.43000387,3593.0,3592.9,6.00791442]
[1735983401841,4.43000387,3593.0,3592.9,5.72949442]
[1735983402042,4.43000387,3593.0,3592.9,4.70731014]
[1735983403447,5.24233623,3593.0,3592.8,4.37253114]
[1735983403645,5.24233623,3593.0,3592.8,4.65096114]
[1735983403646,0.27842,3592.9,3592.8,4.65096114]
[1735983404448,5.24233623,3593.0,3592.8,4.37253114]
[1735983404746,5.52075623,3593.0,3592.9,1.30060428]
[1735983404946,5.52075623,3593.0,3592.9,1.02218428]
[1735983406246,0.27842,3592.9,3592.8,4.65095114]
[1735983406741,0.27842,3592.9,3592.8,4.37253114]
[1735983408145,4.65475623,3592.9,3592.8,4.37253114]
[1735983412547,3.62767778,3592.9,3592.5,8.60251542]
[1735983412750,1.30062428,3592.6,3592.5,4.37253114]
[1735983413651,5.40366432,3592.6,3592.3,4.65099114]
[1735983413850,1.30064428,3592.4,3592.3,4.65099114]
[1735983414050,1.30064428,3592.4,3592.3,4.37253114]
[1735983414546,1.30064428,3592.4,3592.3,1.12573114]
[1735983415046,1.30064428,3592.4,3592.2,6.55339928]
[1735983415047,0.27847,3592.3,3592.2,6.55339928]
[1735983416956,0.27849,3592.0,3591.9,1.02218428]
[1735983417252,0.27849,3592.0,3591.9,1.30068428]
[1735983417851,0.27849,3592.0,3591.9,1.02218428]
[1735983418254,0.71559,3592.0,3591.9,1.02218428]
[1735983418456,1.1334019,3592.0,3591.9,1.02218428]
[1735983419758,4.41342244,3592.0,3591.9,1.02218428]
[1735983420957,3.69783244,3592.0,3591.9,1.30068428]
[1735983421154,3.28002054,3592.0,3591.9,1.30068428]
[1735983422159,3.28002054,3592.0,3591.9,0.2785]
[1735983422355,0.8601,3592.2,3591.9,1.02218428]
[1735983422763,0.27849,3592.1,3592.0,0.27849]
[1735983423452,2.31348428,3592.2,3591.9,1.02218428]
[1735983423657,2.31348428,3592.2,3591.7,0.8515]
[1735983423658,0.2785,3591.9,3591.8,0.2785]
[1735983424661,1.02218428,3592.0,3591.7,1.43208428]
[1735983424862,0.2785,3591.8,3591.7,1.71059428]
[1735983425354,0.2785,3591.8,3591.5,4.22998428]
[1735983425556,0.72631,3591.7,3591.6,0.27852]
[1735983426763,0.4478,3591.7,3591.6,0.27852]
[1735983427456,0.4478,3591.7,3591.5,4.22998428]
[1735983427662,0.72632,3591.7,3591.5,4.50850428]
[1735983427959,1.30070428,3591.6,3591.4,0.71943]
[1735983428153,0.4257,3591.5,3591.4,0.71943]
[1735983429661,0.4257,3591.5,3591.4,1.74161428]
[1735983431556,1.02218428,3591.6,3591.5,0.27853]
[1735983432262,1.30070428,3591.6,3591.5,0.27853]
[1735983433758,1.02218428,3591.6,3591.5,0.27853]
[1735983434262,0.72631,3591.7,3591.5,0.27853]
[1735983434463,0.72631,3591.7,3591.6,0.27852]
[1735983441257,0.4478,3591.7,3591.4,0.4409]
[1735983441462,1.30071428,3591.5,3591.4,0.71944]
[1735983444770,1.30071428,3591.5,3591.4,0.27854]
[1735983445662,1.30071428,3591.5,3591.2,1.02218428]
[1735983445868,1.02218428,3591.5,3591.2,1.02218428]
[1735983446068,1.30071428,3591.5,3591.4,0.27854]
[1735983446368,1.30071428,3591.5,3591.3,0.27854]
[1735983446369,0.27854,3591.4,3591.3,0.27854]
[1735983449471,1.30071428,3591.5,3591.2,0.27855]
[1735983449680,0.4262,3591.3,3591.2,0.27855]
[1735983452475,1.72693428,3591.3,3591.2,0.27855]
[1735983452773,1.44838428,3591.3,3590.7,6.55339928]
[1735983452967,1.02218428,3591.0,3590.7,6.55339928]
[1735983453172,1.30075428,3591.0,3590.8,0.27858]
[1735983453371,0.4326,3590.9,3590.8,0.27858]
[1735983454270,0.71117,3590.9,3590.8,0.27858]
[1735983454476,0.4326,3590.9,3590.8,0.27858]
[1735983457576,2.61812066,3590.9,3590.8,0.27858]
[1735983457968,0.27858,3590.8,3590.6,0.2786]
[1735983458172,1.02218428,3590.7,3590.6,0.2786]
[1735983458372,1.71647428,3590.7,3590.6,0.2786]
[1735983458575,1.43788428,3590.7,3590.6,0.2786]
[1735983460475,1.71647428,3590.7,3590.6,0.2786]
[1735983461677,1.43788428,3590.7,3590.6,0.2786]
[1735983462080,1.71647428,3590.7,3590.3,0.4444]
[1735983462382,1.71647428,3590.7,3590.6,0.2786]
[1735983463586,1.71647428,3590.7,3590.3,0.4444]
[1735983463780,1.71647428,3590.7,3590.6,0.2786]
[1735983463979,1.43788428,3590.7,3590.3,0.4444]
[1735983464284,1.71647428,3590.7,3590.5,0.2786]
[1735983464474,1.71647428,3590.7,3590.4,0.27861]
[1735983464670,1.71647428,3590.7,3590.6,0.2786]
[1735983465684,1.71647428,3590.7,3590.5,0.2786]
[1735983466683,0.4136,3590.6,3590.5,0.2786]
[1735983470578,0.4136,3590.6,3590.3,0.4444]
[1735983470779,1.47518428,3590.5,3590.4,0.27861]
[1735983474579,1.47518428,3590.5,3590.3,0.4444]
[1735983474786,0.27861,3590.4,3590.3,0.72302]
[1735983475182,1.47518428,3590.5,3590.3,0.72302]
[1735983475378,1.75379428,3590.5,3590.3,0.72302]
[1735983476688,1.75379428,3590.5,3590.4,0.27861]
[1735983476885,1.75379428,3590.5,3590.3,0.72302]
[1735983477085,1.47518428,3590.5,3590.3,0.4444]
[1735983477289,1.47518428,3590.5,3590.3,0.27861]
[1735983477290,0.27861,3590.4,3590.3,0.27861]
[1735983478490,1.47518428,3590.5,3590.2,4.22998428]
[1735983478692,1.75379428,3590.5,3590.4,0.27861]
[1735983478890,1.47518428,3590.5,3590.2,4.22998428]
[1735983479093,0.27862,3590.4,3590.3,0.27862]
[1735983479892,1.47518428,3590.5,3590.2,4.22998428]
[1735983480094,0.27861,3590.4,3590.2,3.48642]
[1735983480391,0.27862,3590.3,3590.2,3.48642]
[1735983480591,1.30080428,3590.3,3590.2,3.2078]
[1735983480993,1.30080428,3590.3,3590.2,3.48643]
[1735983481195,1.02218428,3590.3,3590.2,3.48643]
[1735983483791,2.18552066,3590.6,3590.5,0.27861]
[1735983484001,2.18552066,3590.6,3590.5,1.30079428]
[1735983484298,2.18552066,3590.6,3590.5,0.27861]
[1735983484498,2.18552066,3590.6,3590.5,0.69721]
[1735983484696,2.18552066,3591.0,3590.5,0.4186]
[1735983484997,2.18552066,3591.0,3590.9,1.30075428]
[1735983487204,2.18552066,3591.0,3590.9,0.27857]
[1735983487397,5.39332066,3591.0,3590.6,0.4134]
[1735983487701,2.46409066,3591.0,3590.9,0.27857]
[1735983488090,2.18552066,3591.0,3590.6,0.4134]
[1735983488290,1.02218428,3590.8,3590.3,1.02218428]
[1735983488500,1.02218428,3590.6,3590.3,1.02218428]
[1735983488900,1.02218428,3590.6,3590.5,0.27861]
[1735983489096,0.8512,3590.7,3590.3,1.02218428]
[1735983489396,4.40981054,3590.7,3590.6,0.2786]
[1735983489592,4.13122054,3590.7,3590.3,1.02218428]
[1735983489788,0.2786,3590.6,3590.5,0.2786]
[1735983490195,4.13122054,3590.7,3590.3,1.02218428]
[1735983490500,0.27861,3590.5,3590.4,0.27861]
[1735983490696,1.02218428,3590.6,3590.3,1.02218428]
[1735983490892,0.4371,3590.5,3590.3,1.02218428]
[1735983491097,0.71571,3590.5,3590.4,0.27861]
[1735983491297,41.51571,3590.5,3590.4,0.27861]
[1735983491498,0.71571,3590.5,3590.4,0.27861]
[1735983492397,0.4371,3590.5,3590.2,0.4335]
[1735983492592,1.30080428,3590.4,3590.3,0.27862]
[1735983492799,0.27862,3590.3,3590.2,0.71212]
[1735983493699,0.27862,3590.3,3590.2,0.27862]
[1735983494901,2.46689557,3590.3,3590.2,0.27862]
[1735983495805,2.18827557,3590.3,3590.2,0.27862]
[1735983497607,3.55864054,3590.4,3590.1,1.02218428]
[1735983497809,3.55864054,3590.4,3590.3,0.27862]
[1735983498509,3.28002054,3590.4,3590.3,1.30080428]
[1735983498909,3.69800445,3590.4,3590.3,1.30080428]
[1735983500313,0.41798391,3590.4,3590.3,1.30080428]
[1735983501008,0.69659391,3590.4,3590.3,1.30080428]
[1735983501912,0.27861,3590.4,3590.3,1.30080428]
[1735983503012,0.69659391,3590.4,3590.3,1.30080428]
[1735983504410,0.27863,3590.2,3590.1,1.30081428]
[1735983506217,0.71743,3590.2,3590.1,1.30081428]
[1735983506613,0.71743,3590.2,3590.1,1.02218428]
[1735983506817,0.71743,3590.2,3590.1,1.30082428]
[1735983507019,0.71743,3590.2,3590.1,1.02218428]
[1735983507208,1.14843,3590.2,3590.1,1.02218428]
[1735983507606,1.14843,3590.2,3590.1,1.30082428]
[1735983508315,1.14843,3590.2,3590.1,1.02218428]
[1735983508517,4.435247,3590.2,3590.1,1.02218428]
[1735983509614,0.27864,3590.1,3590.0,0.27864]
[1735983511319,2.46989671,3590.1,3590.0,4.88161859]
[1735983511513,2.19125671,3590.1,3590.0,4.88161859]
[1735983518631,2.61705671,3590.1,3590.0,4.88161859]
[1735983518833,2.61705671,3590.1,3590.0,11.43501787]
[1735983519138,2.61705671,3590.1,3590.0,12.45720215]
[1735983519930,0.4258,3590.1,3590.0,5.90380287]
[1735983529842,0.4258,3590.1,3590.0,12.45720215]
[1735983529843,2.61702287,3590.1,3590.0,12.45720215]
[1735983530844,2.19122287,3590.1,3590.0,12.45720215]
[1735983531039,2.62222287,3590.2,3590.1,0.27864]
[1735983531540,2.19122287,3590.2,3590.1,0.27864]
[1735983531844,2.19122287,3590.2,3590.1,1.12454]
[1735983532043,2.19122287,3590.2,3590.1,5.44887859]
[1735983532044,3.286817,3590.2,3590.1,5.44887859]
[1735983532240,3.286817,3590.2,3590.1,5.72751859]
[1735983533844,2.19175506,3590.5,3590.4,0.27861]
[1735983534044,2.19175506,3590.5,3590.4,1.30079428]
[1735983534544,2.19175506,3590.5,3590.4,1.74559428]
[1735983535044,3.286817,3590.6,3590.5,0.27861]
[1735983535450,3.720617,3590.6,3590.5,0.27861]
[1735983536855,0.85172626,3590.6,3590.5,4.65536729]
[1735983538253,0.4338,3590.6,3590.5,0.27861]
[1735983539651,0.85172626,3590.6,3590.5,0.27861]
[1735983540951,0.41792626,3590.6,3590.5,1.30079428]
[1735983541148,0.41792626,3590.6,3590.5,0.69311]
[1735983541345,0.41792626,3590.6,3590.5,1.71529428]
[1735983541956,3.28689057,3590.7,3590.6,0.2786]
[1735983543459,4.58766485,3590.7,3590.5,4.65549783]
[1735983543670,0.4325,3590.6,3590.5,4.65549783]
[1735983543861,0.7111,3590.6,3590.5,4.65549783]
[1735983544063,0.4325,3590.6,3590.5,4.65549783]
[1735983544763,0.85042626,3590.6,3590.5,0.2786]
[1735983550667,3.71888172,3590.6,3590.5,0.2786]
[1735983554575,4.13683962,3590.6,3590.5,0.2786]
[1735983556177,3.71888172,3590.6,3590.5,0.2786]
[1735983564893,3.71888172,3590.6,3590.5,4.65549783]
[1735983567788,3.28638172,3590.6,3590.5,4.65549783]
[1735983569889,0.41795698,3590.6,3590.5,0.27861]
[1735983570983,4.37468824,3590.6,3590.3,4.37689783]
[1735983571186,4.37468824,3590.6,3590.5,0.27861]
[1735983572186,4.79264522,3590.6,3590.5,0.27861]
[1735983573281,4.79264522,3590.7,3590.4,4.37689783]
[1735983573483,4.79264522,3590.7,3590.6,0.2786]
[1735983574989,0.41795698,3590.7,3590.6,4.65549783]
[1735983576298,4.37468824,3590.7,3590.6,0.2786]
[1735983577387,45.17468824,3590.7,3590.6,0.2786]
[1735983577591,45.59264522,3590.7,3590.6,4.65549783]
[1735983578995,45.59264522,3590.7,3590.6,5.08109783]
[1735983580900,4.79264522,3590.7,3590.6,5.08109783]
[1735983585900,5.07123522,3590.7,3590.6,5.08109783]
[1735983587597,4.79264522,3590.7,3590.6,5.08109783]
[1735983589601,5.07123522,3590.7,3590.6,5.08109783]
[1735983589798,0.69654698,3590.7,3590.6,5.08109783]
[1735983590907,0.27859,3590.7,3590.6,5.08109783]
[1735983592493,0.69654698,3590.7,3590.6,5.08109783]
[1735983596406,5.08299443,3590.7,3590.6,5.3088406]
[1735983597898,5.08299443,3590.7,3590.6,0.7042]
[1735983599295,5.08299443,3590.7,3590.6,5.08309706]
[1735983600497,4.80440443,3590.7,3590.6,5.08309706]
[1735983600697,4.80440443,3590.7,3590.6,6.10528134]
[1735983600902,2.91840443,3590.7,3590.6,6.10528134]
[1735983601101,2.91840443,3590.7,3590.6,6.53318134]
[1735983601304,2.23780443,3590.7,3590.6,11.53318134]
[1735983601498,1.55770443,3590.7,3590.6,11.53318134]
[1735983601703,1.55770443,3590.7,3590.6,11.10758134]
[1735983602013,2.19293151,3590.8,3590.6,31.14702812]
[1735983602214,2.19293151,3590.8,3590.7,4.57339]
[1735983602508,2.19293151,3590.8,3590.7,5.76279883]
[1735983602707,2.19293151,3590.8,3590.7,4.57339]
[1735983603610,5.8885603,3591.4,3590.7,4.57339]
[1735983603611,2.19293151,3591.2,3590.7,18.38099549]
[1735983603807,2.19293151,3591.2,3591.1,1.30074428]
[1735983604810,2.19293151,3591.2,3591.1,5.90327944]
[1735983605910,3.70959727,3591.4,3591.2,0.27855]
[1735983605911,2.19293151,3591.3,3591.2,0.27855]
[1735983606611,2.19293151,3591.3,3591.2,0.71115]
[1735983607707,2.19293151,3591.3,3591.2,1.15675]
[1735983608914,2.19293151,3591.7,3591.6,0.27852]
[1735983609108,2.19293151,3591.7,3591.6,1.30070428]
[1735983609506,2.19293151,3591.7,3591.6,0.27852]
[1735983610408,0.4334,3591.8,3591.7,0.27851]
[1735983610607,0.4334,3591.8,3591.7,1.30069428]
[1735983610807,0.881,3591.8,3591.7,1.30069428]
[1735983616011,0.4334,3591.8,3591.7,1.30069428]
[1735983617919,0.879,3591.8,3591.7,1.30069428]
[1735983623029,1.90118428,3591.8,3591.2,7.56989721]
[1735983623225,1.30071428,3591.6,3591.3,0.27854]
[1735983623424,0.27853,3591.5,3591.2,8.59208149]
[1735983623622,1.30071428,3591.6,3591.3,0.27854]
[1735983623827,1.02218428,3591.6,3591.2,8.59208149]
[1735983624030,1.02218428,3591.4,3591.2,7.84844721]
[1735983624528,0.4326,3591.3,3591.2,7.84844721]
[1735983625229,0.4326,3591.3,3591.2,3.48635]
[1735983626231,0.4326,3591.3,3591.2,3.2078]
[1735983626232,0.8717,3591.3,3591.2,3.2078]
[1735983626530,0.8717,3591.3,3590.5,5.46709721]
[1735983626531,0.8717,3591.3,3590.7,1.02218428]
[1735983626730,0.27857,3591.0,3590.8,0.27858]
[1735983627128,1.43768428,3591.2,3590.7,1.02218428]
[1735983627328,0.27857,3591.0,3590.8,0.27858]
[1735983627526,0.27856,3591.1,3590.9,0.27857]
[1735983630129,1.71624428,3591.2,3590.9,0.27857]
[1735983630925,0.27856,3591.1,3590.9,0.27857]
[1735983631830,0.27856,3591.1,3590.9,1.30075428]
[1735983632631,1.71624428,3591.2,3590.9,1.30075428]
[1735983632832,1.71624428,3591.2,3591.0,0.27856]
[1735983634831,0.4155,3591.2,3591.1,1.02218428]
[1735983635030,0.4155,3591.2,3591.1,1.30074428]
[1735983637932,0.4155,3591.2,3591.0,0.27856]
[1735983638337,0.4155,3591.2,3590.9,1.02218428]
[1735983638730,0.4155,3591.2,3591.0,0.27856]
[1735983638926,0.4155,3591.2,3591.1,0.27856]
[1735983643641,1.43768428,3591.2,3591.1,0.27856]
[1735983643836,1.71623428,3591.2,3591.1,0.27856]
[1735983644042,1.43768428,3591.2,3591.1,0.27856]
[1735983646242,3.63061579,3591.2,3591.1,0.27856]
[1735983647832,3.90916579,3591.2,3591.1,0.27856]
[1735983650247,1.71623428,3591.2,3591.1,0.27856]
[1735983653045,0.2786,3590.7,3590.5,4.64069721]
[1735983653348,2.31868428,3590.6,3590.5,4.64069721]
[1735983654447,2.31868428,3590.6,3590.5,0.2786]
[1735983658752,2.59728428,3590.6,3590.4,0.27861]
[1735983660649,2.59728428,3590.6,3590.3,1.02218428]
[1735983660650,2.31868428,3590.6,3590.1,1.46358428]
[1735983660842,1.02218428,3590.4,3590.3,0.27862]
[1735983661848,0.27862,3590.3,3590.2,0.27862]
[1735983662055,0.27862,3590.3,3590.0,3.2078]
[1735983662257,0.4306,3590.2,3590.1,1.30081428]
[1735983663347,0.70923,3590.2,3590.1,1.02218428]
[1735983663545,0.70923,3590.2,3590.1,1.30082428]
[1735983664154,0.70923,3590.2,3590.1,1.02218428]
[1735983666259,0.4306,3590.2,3590.1,1.30082428]
[1735983671961,2.19293151,3590.4,3590.3,0.27862]
[1735983672265,2.19293151,3590.4,3590.3,1.30080428]
[1735983674268,0.8471,3590.6,3590.5,0.27861]
[1735983674561,0.8471,3590.6,3590.5,1.30079428]
[1735983675157,0.4357,3590.6,3590.5,1.30079428]
[1735983679969,2.19293151,3590.7,3590.5,1.30079428]
[1735983679970,2.19293151,3590.7,3590.6,0.2786]
[1735983681267,0.27858,3590.9,3590.5,8.59208149]
[1735983681475,0.27858,3590.9,3590.8,0.27858]
[1735983682168,3.94368579,3591.0,3590.8,0.27858]
[1735983682770,2.19293151,3590.9,3590.8,0.27858]
[1735983683572,2.19293151,3590.9,3590.5,4.22998428]
[1735983683869,2.47151151,3590.9,3590.6,0.2786]
[1735983684079,2.47151151,3590.9,3590.8,0.27858]
[1735983684570,2.19293151,3590.9,3590.8,0.27858]
[1735983684971,5.04015155,3591.0,3590.8,0.27858]
[1735983686068,4.76158155,3591.0,3590.8,0.27858]
[1735983686368,4.76158155,3591.0,3590.5,4.22998428]
[1735983686369,0.27859,3590.8,3590.6,0.27859]
[1735983686675,0.4299,3590.7,3590.6,0.2786]
[1735983686864,41.6519,3590.7,3590.6,0.2786]
[1735983687373,1.13049,3590.7,3590.6,0.2786]
[1735983687675,0.8519,3590.7,3590.6,0.2786]
[1735983688165,3.04065843,3590.7,3590.6,0.2786]
[1735983688670,0.2786,3590.6,3590.5,3.2078]
[1735983688864,1.30078428,3590.6,3590.5,3.2078]
[1735983691768,1.30078428,3590.6,3590.1,9.00358149]
[1735983691769,1.02218428,3590.6,3590.1,9.00358149]
[1735983691970,0.71371,3590.5,3590.4,0.27861]
[1735983692773,3.99801141,3590.5,3590.4,0.27861]
[1735983693471,3.71940141,3590.5,3590.1,8.59208149]
[1735983693678,0.27863,3590.3,3590.2,0.27862]
[1735983694177,0.69043,3590.3,3590.2,0.27862]
[1735983694476,0.69042,3590.3,3590.2,0.27862]
[1735983698181,3.97472141,3590.3,3590.2,0.27862]
[1735983700077,3.69610141,3590.3,3590.1,5.38428149]
[1735983700283,0.70843,3590.2,3590.1,5.66291149]
[1735983700679,0.70843,3590.2,3590.1,5.38428149]
[1735983701383,0.70843,3590.2,3590.1,5.66292149]
[1735983701681,0.70843,3590.2,3590.1,5.38428149]
[1735983701882,0.70843,3590.2,3590.1,5.66292149]
[1735983702388,0.4298,3590.2,3590.1,1.30082428]
[1735983704288,2.62053663,3590.2,3590.1,5.66292149]
[1735983707096,2.19073663,3590.2,3590.1,5.66292149]
[1735983719402,2.19073663,3590.3,3590.1,12.24548117]
[1735983719603,2.19073663,3590.3,3590.2,0.27863]
[1735983720507,2.19073663,3590.3,3590.2,4.65185509]
[1735983722707,2.19073663,3590.3,3590.2,5.50675509]
[1735983723207,2.19073663,3590.4,3590.2,12.07743222]
[1735983723407,2.19073663,3590.4,3590.3,1.30080428]
[1735983724312,3.07893663,3590.5,3590.3,5.70157068]
[1735983724505,3.07893663,3590.5,3590.4,0.27861]
[1735983725702,3.07893663,3590.5,3590.4,4.65079318]